bitfinex/quotes_BTCUSD_20230404
["timestamp","ask_amount","ask_price","bid_price","bid_amount"]
[1680575916911,0.47785698,27913.0,27912.0,0.0208]
[1680575917804,0.45485698,27913.0,27912.0,0.0208]
[1680575918000,0.47785698,27913.0,27912.0,0.0208]
[1680575918267,0.65540539,27913.0,27912.0,0.0208]
[1680575918940,0.65540539,27913.0,27912.0,0.0208]
[1680575919384,1.06385086,27913.0,27912.0,0.0208]
[1680575919863,1.04085086,27913.0,27912.0,0.0208]
[1680575920316,1.51835086,27913.0,27912.0,0.0208]
[1680575920542,1.60395086,27913.0,27912.0,0.0208]
[1680575920781,1.44940245,27913.0,27912.0,0.0208]
[1680575921005,1.42640245,27913.0,27912.0,0.0208]
[1680575921225,1.45340245,27913.0,27912.0,0.0208]
[1680575921458,1.42640245,27913.0,27912.0,0.0208]
[1680575921683,1.45340245,27913.0,27912.0,0.0208]
[1680575922164,1.65090206,27913.0,27912.0,0.0208]
[1680575922379,1.65108206,27913.0,27912.0,0.0208]
[1680575922607,1.45358245,27913.0,27912.0,0.0208]
[1680575923546,1.42658245,27913.0,27912.0,0.0208]
[1680575923780,1.35358245,27913.0,27912.0,0.0208]
[1680575924012,1.32658245,27913.0,27912.0,0.0208]
[1680575924243,1.35358245,27913.0,27912.0,0.0208]
[1680575924702,1.35340245,27913.0,27912.0,0.0208]
[1680575925640,0.95345698,27913.0,27912.0,0.0208]
[1680575925866,0.49035698,27913.0,27912.0,0.38613519]
[1680575926086,0.49053698,27913.0,27912.0,0.38613519]
[1680575929743,0.49053698,27913.0,27912.0,0.0208]
[1680575929971,0.49035698,27913.0,27912.0,0.0208]
[1680575931117,0.49053698,27913.0,27912.0,0.0208]
[1680575931554,0.49035698,27913.0,27912.0,0.0208]
[1680575932918,0.49053698,27913.0,27912.0,0.0208]
[1680575933349,0.49035698,27913.0,27912.0,0.0208]
[1680575934257,0.76171296,27913.0,27912.0,0.0208]
[1680575934475,1.13921296,27913.0,27912.0,0.0208]
[1680575934764,1.22471296,27913.0,27912.0,0.0208]
[1680575937235,1.29331296,27913.0,27912.0,0.0208]
[1680575937659,0.56745698,27913.0,27912.0,0.0208]
[1680575937873,0.55895698,27913.0,27912.0,0.0208]
[1680575939230,0.55895698,27913.0,27912.0,0.19947738]
[1680575939444,0.55913698,27913.0,27912.0,0.19947738]
[1680575939687,0.739877,27915.0,27912.0,0.02086]
[1680575939688,0.03819223,27915.0,27912.0,0.02086]
[1680575939965,0.21491364,27925.0,27914.0,0.73662371]
[1680575940217,0.00018,27928.0,27925.0,0.2]
[1680575940461,0.10884546,27931.0,27926.0,0.40113256]
[1680575940462,0.02288,27931.0,27926.0,0.40113256]
[1680575940718,0.15182818,27936.0,27926.0,0.40113256]
[1680575940719,0.28175052,27946.0,27929.0,0.4]
[1680575940965,1.28825522,27944.0,27941.0,0.2]
[1680575941245,0.10868375,27945.0,27943.0,0.38281872]
[1680575941246,0.02288,27945.0,27943.0,0.38281872]
[1680575941442,0.4076569,27945.0,27944.0,0.59309951]
[1680575941727,0.02288,27946.0,27944.0,0.00018]
[1680575941999,2.69315371,27945.0,27943.0,0.00018]
[1680575942289,0.3775,27943.0,27940.0,0.00018]
[1680575942568,0.3775,27941.0,27938.0,0.00018]
[1680575942846,0.3775,27941.0,27937.0,0.08501105]
[1680575942847,0.5775,27938.0,27937.0,0.00018]
[1680575943119,0.93661281,27938.0,27935.0,0.00018]
[1680575943392,0.93661281,27938.0,27932.0,0.08501105]
[1680575943393,0.5775,27934.0,27932.0,0.00018]
[1680575943665,0.5775,27934.0,27931.0,0.00018]
[1680575943666,0.3775,27932.0,27931.0,0.00018]
[1680575943993,0.3775,27932.0,27930.0,0.08513105]
[1680575943994,0.5775,27931.0,27930.0,0.08513105]
[1680575944216,0.5775,27931.0,27929.0,0.12757657]
[1680575944217,1.1010571,27931.0,27929.0,0.00018]
[1680575944432,1.1010571,27931.0,27927.0,0.11409918]
[1680575944433,0.020666,27930.0,27927.0,0.11427918]
[1680575944713,0.012966,27929.0,27927.0,0.00018]
[1680575945008,0.012966,27929.0,27926.0,0.00018]
[1680575945224,0.012398,27929.0,27926.0,0.17178]
[1680575945801,0.07153651,27929.0,27926.0,0.17196]
[1680575945802,0.07153651,27929.0,27927.0,0.40384123]
[1680575945805,0.3,27931.0,27928.0,0.171]
[1680575946007,0.00018,27932.0,27928.0,0.08556]
[1680575946008,0.001,27929.0,27928.0,0.08556]
[1680575946181,0.39821243,27935.0,27928.0,0.215689]
[1680575946182,0.36038142,27933.0,27928.0,0.215689]
[1680575946446,0.08689724,27932.0,27930.0,0.0855]
[1680575946696,0.36056142,27933.0,27930.0,0.0855]
[1680575946931,0.012582,27932.0,27930.0,0.0855]
[1680575947160,0.30018,27934.0,27930.0,0.0855]
[1680575947652,0.308591,27934.0,27930.0,0.0855]
[1680575948005,0.008592,27933.0,27932.0,0.0855]
[1680575948259,0.008592,27933.0,27932.0,0.08568]
[1680575948260,0.0212998,27933.0,27932.0,0.08568]
[1680575948531,0.0212998,27933.0,27932.0,0.0855]
[1680575949038,0.36923116,27935.0,27932.0,0.0915]
[1680575949252,0.42789038,27935.0,27932.0,0.0855]
[1680575949476,0.01262,27934.0,27932.0,0.0855]
[1680575949700,0.45832325,27939.0,27933.0,0.130551]
[1680575949918,0.3869672,27938.0,27934.0,0.0855]
[1680575950155,0.3957372,27938.0,27934.0,0.0855]
[1680575950383,0.3955572,27938.0,27935.0,0.36772249]
[1680575950607,0.4027372,27938.0,27935.0,0.36772249]
[1680575951039,0.4025572,27938.0,27935.0,0.36790249]
[1680575951248,0.3955572,27938.0,27935.0,0.36790249]
[1680575951466,0.43512865,27937.0,27935.0,0.36890249]
[1680575951692,0.008591,27936.0,27935.0,0.36790249]
[1680575951911,0.008591,27936.0,27935.0,0.02018]
[1680575952131,0.008591,27936.0,27933.0,0.00018]
[1680575952132,0.021544,27936.0,27933.0,0.00018]
[1680575952359,0.012296,27935.0,27932.0,0.35243768]
[1680575952587,0.108591,27936.0,27932.0,0.35261768]
[1680575952588,0.008591,27934.0,27932.0,0.35261768]
[1680575953254,0.008591,27934.0,27933.0,0.17954189]
[1680575953703,0.009591,27934.0,27933.0,0.17954189]
[1680575953940,0.009591,27934.0,27932.0,0.007]
[1680575954231,0.012293,27933.0,27930.0,0.28335578]
[1680575954381,0.008592,27932.0,27930.0,0.28353578]
[1680575954810,0.008592,27932.0,27931.0,0.0945519]
[1680575955036,0.008592,27933.0,27931.0,0.0945519]
[1680575955725,0.42049993,27933.0,27931.0,0.0945519]
[1680575955949,0.14289681,27932.0,27922.0,0.03797572]
[1680575956177,0.260151,27929.0,27917.0,0.12655554]
[1680575956412,0.260151,27929.0,27915.0,0.20824394]
[1680575956413,0.2,27924.0,27915.0,0.03819223]
[1680575956660,0.3775,27918.0,27915.0,0.0128213]
[1680575956903,0.5775,27916.0,27913.0,0.4226261]
[1680575957131,0.48955081,27915.0,27912.0,0.0208]
[1680575957368,0.012742,27914.0,27912.0,0.0208]
[1680575957592,0.008598,27913.0,27912.0,0.0208]
[1680575957832,0.02114,27913.0,27912.0,0.0208]
[1680575958757,0.02114,27913.0,27912.0,0.0218]
[1680575959010,0.02114,27913.0,27912.0,0.0208]
[1680575959257,0.04814,27913.0,27912.0,0.0218]
[1680575960985,0.04814,27913.0,27912.0,0.36330922]
[1680575961476,0.04814,27913.0,27912.0,0.0218]
[1680575961724,0.035598,27913.0,27912.0,0.36201788]
[1680575963136,0.06426929,27913.0,27912.0,0.36201788]
[1680575963353,0.08846982,27913.0,27912.0,0.36201788]
[1680575965512,0.07688429,27913.0,27912.0,0.36201788]
[1680575966164,0.06426929,27913.0,27912.0,0.0218]
[1680575966386,0.05567129,27913.0,27912.0,0.0218]
[1680575966615,0.06426929,27913.0,27912.0,0.40560507]
[1680575967060,0.008598,27913.0,27912.0,0.40460507]
[1680575967281,0.009598,27913.0,27912.0,0.40960507]
[1680575967499,0.009598,27913.0,27912.0,0.36734307]
[1680575967947,0.009598,27913.0,27912.0,0.36752307]
[1680575968176,0.009598,27913.0,27912.0,0.36734307]
[1680575968414,0.008598,27913.0,27912.0,0.36234307]
[1680575968637,0.030598,27913.0,27912.0,0.36334307]
[1680575969059,0.05647882,27913.0,27912.0,0.36334307]
[1680575969563,0.0672854,27913.0,27912.0,0.36334307]
[1680575969789,0.0672854,27913.0,27912.0,0.0218]
[1680575970011,0.0802574,27913.0,27912.0,0.0218]
[1680575971742,0.0802574,27913.0,27912.0,0.38730795]
[1680575973438,0.06963082,27913.0,27912.0,0.38730795]
[1680575976102,0.06945082,27913.0,27912.0,0.38730795]
[1680575976564,0.05647882,27913.0,27912.0,0.46465636]
[1680575978491,1e-08,27913.0,27912.0,0.46465636]
[1680575978713,0.00859801,27913.0,27912.0,0.46465636]
[1680575979177,0.04698425,27913.0,27912.0,0.46465636]
[1680575980474,0.04698425,27913.0,27912.0,0.46483636]
[1680575980703,0.04698425,27913.0,27912.0,0.0218]
[1680575980899,0.04698425,27913.0,27912.0,0.40226523]
[1680575982337,0.06032525,27913.0,27912.0,0.40226523]
[1680575983737,0.05994225,27913.0,27912.0,0.40226523]
[1680575983932,0.04698425,27913.0,27912.0,0.40226523]
[1680575984151,0.06053725,27913.0,27912.0,0.40226523]
[1680575984862,0.04698425,27913.0,27912.0,0.40226523]
[1680575985520,0.05943725,27913.0,27912.0,0.40226523]
[1680575985982,0.07055758,27913.0,27912.0,0.0218]
[1680575987120,0.44805758,27913.0,27912.0,0.0218]
[1680575987351,0.07055758,27913.0,27912.0,0.0218]
[1680575988027,0.07055758,27913.0,27912.0,0.0208]
[1680575988266,0.05943725,27913.0,27912.0,0.0208]
[1680575988477,0.07343725,27913.0,27912.0,0.0228]
[1680575988727,0.05943725,27913.0,27912.0,0.0208]
[1680575988950,0.07343725,27913.0,27912.0,0.0228]
[1680575989403,0.07343725,27913.0,27912.0,0.47987498]
[1680575989617,0.07343725,27913.0,27912.0,0.47787498]
[1680575989832,0.05943725,27913.0,27912.0,0.47787498]
[1680575990298,0.04698425,27913.0,27912.0,0.47787498]
[1680575990733,0.06098425,27913.0,27912.0,0.47987498]
[1680575990951,0.07423225,27913.0,27912.0,0.47987498]
[1680575992272,0.07423225,27913.0,27912.0,0.47993498]
[1680575992560,0.06098425,27913.0,27912.0,0.48005498]
[1680575993004,0.06098425,27913.0,27912.0,0.47987498]
[1680575995904,0.05238625,27913.0,27912.0,0.47987498]
[1680575996138,0.06098425,27913.0,27912.0,0.47987498]
[1680575997390,0.06098425,27913.0,27912.0,0.48005498]
[1680575997733,0.06098425,27913.0,27912.0,0.47987498]
[1680575998494,0.06098425,27913.0,27912.0,0.56442139]
[1680575999149,0.06098425,27913.0,27912.0,0.61219339]
[1680576000229,0.06098425,27913.0,27912.0,1.11543546]
[1680576000442,0.06098425,27913.0,27912.0,1.33270888]
[1680576001545,0.06098425,27913.0,27912.0,1.12021885]
[1680576001769,0.06098425,27913.0,27912.0,1.07327485]
[1680576002214,0.06088797,27913.0,27912.0,1.15815791]
[1680576002456,0.05228997,27913.0,27912.0,0.70108293]
[1680576002680,0.05228997,27913.0,27912.0,1.06993615]
[1680576002901,0.06088797,27913.0,27912.0,0.86202884]
[1680576003341,0.06088797,27913.0,27912.0,1.07011676]
[1680576003568,0.06088797,27913.0,27912.0,1.06811676]
[1680576003569,0.04688797,27913.0,27912.0,1.06811676]
[1680576003807,0.04788797,27913.0,27912.0,1.08211676]
[1680576004500,0.04688797,27913.0,27912.0,1.06811676]
[1680576004719,0.04788797,27913.0,27912.0,1.08211676]
[1680576004944,0.05783547,27913.0,27912.0,0.71406737]
[1680576005178,0.06111697,27913.0,27912.0,0.45805045]
[1680576005422,0.04788797,27913.0,27912.0,0.87334521]
[1680576005642,0.04788797,27913.0,27912.0,0.87316521]
[1680576005861,0.04788797,27913.0,27912.0,0.85928521]
[1680576006084,0.04688797,27913.0,27912.0,0.86016521]
[1680576006515,0.04688797,27913.0,27912.0,0.85916521]
[1680576006744,0.05329627,27913.0,27912.0,0.85916521]
[1680576007168,0.0150063,27913.0,27912.0,0.85916521]
[1680576007382,0.0210063,27913.0,27912.0,0.85916521]
[1680576009170,0.014598,27913.0,27912.0,0.85922521]
[1680576009422,0.014598,27913.0,27912.0,0.85916521]
[1680576020549,0.02803,27913.0,27912.0,0.85916521]
[1680576021483,0.014598,27913.0,27912.0,0.85916521]
[1680576022215,0.027113,27913.0,27912.0,0.85916521]
[1680576022427,0.0435984,27913.0,27912.0,0.85916521]
[1680576022643,0.0435984,27913.0,27912.0,1.07255905]
[1680576022857,0.027113,27913.0,27912.0,0.65726429]
[1680576023070,0.014598,27913.0,27912.0,0.65726429]
[1680576023593,0.014598,27913.0,27912.0,0.44387045]
[1680576024299,0.014598,27913.0,27912.0,0.65726097]
[1680576024805,0.01453041,27913.0,27912.0,0.44387045]
[1680576026027,0.006,27913.0,27912.0,0.57819245]
[1680576026480,0.006,27913.0,27912.0,0.85009245]
[1680576027175,0.006,27913.0,27912.0,0.67819245]
[1680576027402,0.008597,27916.0,27912.0,0.67819245]
[1680576027630,0.008597,27916.0,27915.0,0.21323829]
[1680576028627,0.008597,27916.0,27915.0,0.22723829]
[1680576028628,0.009597,27916.0,27915.0,0.22723829]
[1680576028881,0.009597,27916.0,27915.0,0.43707045]
[1680576029140,0.009597,27916.0,27915.0,0.22723045]
[1680576029375,0.043985,27916.0,27915.0,0.56830201]
[1680576029786,0.043985,27916.0,27915.0,0.99137246]
[1680576030270,0.042985,27916.0,27915.0,0.97737246]
[1680576030490,0.043985,27916.0,27915.0,0.98437246]
[1680576032329,0.07073316,27916.0,27915.0,0.98437246]
[1680576033623,0.07073316,27916.0,27915.0,1.15491055]
[1680576033883,0.07073316,27916.0,27915.0,0.9416801]
[1680576035055,0.03634516,27916.0,27915.0,0.81382687]
[1680576035278,0.03634516,27916.0,27915.0,1.11305119]
[1680576035505,0.03634516,27916.0,27915.0,1.13991444]
[1680576036163,0.03634516,27916.0,27915.0,1.09631744]
[1680576036607,0.03634516,27916.0,27915.0,1.05359534]
[1680576036825,0.03634516,27916.0,27915.0,1.26682579]
[1680576037320,0.03634516,27916.0,27915.0,1.09631744]
[1680576037512,0.03634516,27916.0,27915.0,1.09434196]
[1680576038172,0.03634516,27916.0,27915.0,0.92385234]
[1680576039747,0.03634516,27916.0,27915.0,0.92403234]
[1680576040187,0.03634516,27916.0,27915.0,0.92385234]
[1680576041149,0.02774816,27916.0,27915.0,0.92385234]
[1680576041407,0.03634516,27916.0,27915.0,0.92385234]
[1680576042078,0.03634516,27916.0,27915.0,0.96927134]
[1680576042302,0.02774816,27916.0,27915.0,0.96927134]
[1680576042521,0.03634516,27916.0,27915.0,0.92385234]
[1680576043433,0.18359579,27916.0,27915.0,0.12784363]
[1680576043717,0.18359579,27916.0,27913.0,0.00018]
[1680576043718,0.06167,27915.0,27913.0,0.00018]
[1680576043950,0.424587,27914.0,27912.0,0.0208]
[1680576044196,0.75294738,27913.0,27912.0,0.0208]
[1680576044413,0.75294738,27913.0,27909.0,0.02086]
[1680576044414,0.3775,27911.0,27909.0,0.02086]
[1680576044638,0.77225181,27910.0,27909.0,0.0208]
[1680576044867,0.88093181,27910.0,27909.0,0.0208]
[1680576045104,0.9382854,27910.0,27909.0,0.0208]
[1680576045321,0.9382854,27910.0,27909.0,0.0218]
[1680576045545,0.9382854,27910.0,27909.0,0.0208]
[1680576045786,0.9592854,27910.0,27909.0,0.0218]
[1680576046938,0.8736854,27910.0,27909.0,0.0218]
[1680576047391,1.2511854,27910.0,27909.0,0.0218]
[1680576048045,1.1511854,27910.0,27909.0,0.0218]
[1680576051557,1.2367854,27910.0,27909.0,0.0218]
[1680576054469,1.7627854,27910.0,27909.0,0.0218]
[1680576055863,1.237935,27910.0,27909.0,0.0218]
[1680576057232,1.337935,27910.0,27909.0,0.0218]
[1680576058388,1.36384434,27910.0,27909.0,0.01919107]
[1680576059362,1.36384434,27910.0,27909.0,0.01659217]
[1680576060282,1.36384434,27910.0,27909.0,0.01400327]
[1680576060472,1.57085584,27910.0,27909.0,0.01400327]
[1680576061329,1.57085584,27910.0,27909.0,0.01142432]
[1680576062397,1.57085584,27910.0,27909.0,0.00885529]
[1680576062398,1.36384434,27910.0,27909.0,0.00885529]
[1680576062618,1.26384434,27910.0,27909.0,0.00885529]
[1680576063384,1.26384434,27910.0,27909.0,0.00629614]
[1680576064235,1.26384434,27910.0,27909.0,0.00371438]
[1680576064446,1.44365804,27910.0,27909.0,0.00371438]
[1680576065325,1.35805804,27910.0,27909.0,0.00114255]
[1680576066211,0.4775,27909.0,27907.0,0.0208]
[1680576066428,0.432905,27908.0,27907.0,0.0208]
[1680576067108,0.45845,27908.0,27907.0,0.0182455]
[1680576067324,0.48045,27908.0,27907.0,0.0192455]
[1680576068208,0.48045,27908.0,27907.0,0.01670082]
[1680576069316,0.48045,27908.0,27907.0,0.01416593]
[1680576069530,0.62397211,27908.0,27907.0,0.01416593]
[1680576070206,0.62397211,27908.0,27907.0,0.01164079]
[1680576071309,0.70957211,27908.0,27907.0,0.00412536]
[1680576072164,0.80957211,27908.0,27907.0,0.00161961]
[1680576073033,0.70957211,27908.0,27907.0,0.00161961]
[1680576073263,0.1,27907.0,27906.0,0.0208]
[1680576073477,0.28495521,27907.0,27906.0,0.0208]
[1680576074314,0.28495521,27907.0,27906.0,0.01831164]
[1680576074315,0.31584273,27907.0,27906.0,0.01831164]
[1680576074545,0.31584273,27907.0,27906.0,0.01931164]
[1680576074764,0.33884273,27907.0,27906.0,0.01931164]
[1680576075193,0.33884273,27907.0,27906.0,0.01683285]
[1680576076729,0.71634273,27907.0,27906.0,0.01683285]
[1680576076964,0.21011752,27907.0,27906.0,0.01683285]
[1680576077186,0.21011752,27907.0,27906.0,0.01436359]
[1680576078253,0.21011752,27907.0,27906.0,0.01191541]
[1680576079310,0.21011752,27907.0,27906.0,0.00947671]
[1680576080131,0.21011752,27907.0,27906.0,0.00704788]
[1680576080408,0.34719778,27907.0,27906.0,0.00704788]
[1680576081214,0.34719778,27907.0,27906.0,0.00462839]
[1680576081434,0.81029778,27907.0,27906.0,0.00462839]
[1680576081651,2.40019167,27907.0,27906.0,0.00462839]
[1680576082188,2.40019167,27907.0,27906.0,0.0022186]
[1680576082637,2.48579167,27907.0,27906.0,8.6e-06]
[1680576082852,2.65781167,27907.0,27906.0,8.6e-06]
[1680576083300,2.63481167,27907.0,27903.0,0.0208]
[1680576083494,0.5479,27904.0,27903.0,0.0208]
[1680576083708,0.715266,27904.0,27903.0,0.0208]
[1680576084122,0.73915374,27904.0,27903.0,0.0208]
[1680576084756,0.76615374,27904.0,27903.0,0.0208]
[1680576086439,0.30385374,27904.0,27903.0,0.0208]
[1680576086882,0.42458928,27904.0,27903.0,0.0208]
[1680576087332,0.30385374,27904.0,27903.0,0.0208]
[1680576087559,0.68135374,27904.0,27903.0,0.0208]
[1680576089907,0.30385374,27904.0,27903.0,0.0208]
[1680576090305,0.31289061,27904.0,27903.0,0.0208]
[1680576090989,0.69039061,27904.0,27903.0,0.0208]
[1680576091691,0.77944767,27904.0,27903.0,0.0208]
[1680576091938,0.77962767,27904.0,27903.0,0.0208]
[1680576092176,0.77944767,27904.0,27903.0,0.0208]
[1680576092660,0.69039061,27904.0,27903.0,0.0208]
[1680576093094,0.31289061,27904.0,27903.0,0.0208]
[1680576093339,0.06852461,27904.0,27903.0,0.46183976]
[1680576093594,0.05948774,27904.0,27903.0,0.54727458]
[1680576094096,0.03248774,27904.0,27903.0,0.67511821]
[1680576094337,0.0276,27904.0,27903.0,0.67511821]
[1680576094565,0.0086,27904.0,27903.0,1.09834736]
[1680576094801,0.0276,27904.0,27903.0,1.01309254]
[1680576095960,0.0320801,27904.0,27903.0,1.01309254]
[1680576096232,0.05707862,27904.0,27903.0,1.01309254]
[1680576096445,0.05707862,27904.0,27903.0,1.01291254]
[1680576096662,0.05259852,27904.0,27903.0,0.58968339]
[1680576096890,0.05259852,27904.0,27903.0,0.67492886]
[1680576097109,0.05259852,27904.0,27903.0,1.01291303]
[1680576099742,0.05259852,27904.0,27903.0,1.01309303]
[1680576100338,0.05259852,27904.0,27903.0,1.01291303]
[1680576101573,0.06303667,27904.0,27903.0,1.01291303]
[1680576101750,0.07599267,27904.0,27903.0,1.01291303]
[1680576102899,0.06555452,27904.0,27903.0,1.01291303]
[1680576104934,0.05259852,27904.0,27903.0,1.01291303]
[1680576105146,0.06573552,27904.0,27903.0,1.01291303]
[1680576105359,0.05259852,27904.0,27903.0,1.01291303]
[1680576106578,0.05259852,27904.0,27903.0,1.18320117]
[1680576106807,0.04399852,27904.0,27903.0,0.61431778]
[1680576107038,0.05259852,27904.0,27903.0,1.03747954]
[1680576107489,0.05259852,27904.0,27903.0,1.08119854]
[1680576107751,0.05259852,27904.0,27903.0,1.03747954]
[1680576107970,0.04399852,27904.0,27903.0,1.2037283]
[1680576108202,0.04399852,27904.0,27903.0,0.7896719]
[1680576108416,0.05259852,27904.0,27903.0,1.09558318]
[1680576108876,0.03359852,27904.0,27903.0,1.30844944]
[1680576109098,0.03659852,27904.0,27903.0,1.31344944]
[1680576109314,0.03359852,27904.0,27903.0,1.30844944]
[1680576109546,0.03359852,27904.0,27903.0,1.30944944]
[1680576109997,0.02499852,27904.0,27903.0,0.7896099]
[1680576110232,0.02499852,27904.0,27903.0,0.57574364]
[1680576110457,0.02499852,27904.0,27903.0,0.7898072]
[1680576110688,0.02499852,27904.0,27903.0,0.57574364]
[1680576110901,0.02499852,27904.0,27903.0,1.01400121]
[1680576111126,0.02499852,27904.0,27903.0,1.02956483]
[1680576111346,0.008599,27908.0,27903.0,0.95336741]
[1680576111624,0.017378,27910.0,27907.0,0.08521231]
[1680576111625,0.017198,27910.0,27907.0,0.08521231]
[1680576111849,0.025798,27909.0,27907.0,0.08521231]
[1680576112284,0.05184629,27909.0,27907.0,0.08521231]
[1680576112764,0.05184629,27909.0,27908.0,0.41310604]
[1680576113219,0.05184629,27909.0,27908.0,0.49831835]
[1680576114167,0.05784629,27909.0,27908.0,0.49931835]
[1680576115272,0.05784629,27909.0,27908.0,0.41410604]
[1680576116050,0.06707042,27909.0,27908.0,0.41410604]
[1680576117479,0.06707042,27909.0,27908.0,0.001]
[1680576118856,0.05776079,27909.0,27908.0,0.001]
[1680576121540,0.07079279,27909.0,27908.0,0.001]
[1680576122247,0.05776079,27909.0,27908.0,0.001]
[1680576122456,0.07048679,27909.0,27908.0,0.001]
[1680576122913,0.05776079,27909.0,27908.0,0.001]
[1680576123116,0.06697637,27909.0,27908.0,0.001]
[1680576123346,0.08042837,27909.0,27908.0,0.001]
[1680576124603,0.06697637,27909.0,27908.0,0.001]
[1680576125243,0.07959737,27909.0,27908.0,0.001]
[1680576125460,0.06697637,27909.0,27908.0,0.001]
[1680576125935,0.07069879,27909.0,27908.0,0.001]
[1680576127259,0.05776079,27909.0,27908.0,0.001]
[1680576127478,0.07083579,27909.0,27908.0,0.001]
[1680576128162,0.07083579,27909.0,27908.0,0.40849832]
[1680576128163,0.05776079,27909.0,27908.0,0.40849832]
[1680576129592,0.05776079,27909.0,27908.0,0.001]
[1680576129802,0.05776079,27909.0,27908.0,0.27241618]
[1680576130570,0.06697637,27909.0,27908.0,0.001]
[1680576130882,0.07917537,27909.0,27908.0,0.001]
[1680576132173,0.08767537,27909.0,27908.0,0.001]
[1680576132379,0.18767537,27909.0,27908.0,0.001]
[1680576133435,0.18167537,27909.0,27904.0,0.44525342]
[1680576133667,0.012749,27908.0,27904.0,0.25609301]
[1680576133899,0.012749,27908.0,27904.0,0.25591301]
[1680576133900,0.0602,27907.0,27904.0,0.25591301]
[1680576134119,0.013121,27906.0,27904.0,0.25591301]
[1680576134335,0.025801,27905.0,27904.0,0.25591301]
[1680576134994,0.025801,27905.0,27903.0,0.67314078]
[1680576135455,0.025801,27905.0,27904.0,0.48751249]
[1680576136130,0.025801,27905.0,27903.0,0.10601231]
[1680576136349,0.025801,27905.0,27903.0,0.4810645]
[1680576136350,0.037801,27905.0,27903.0,0.4810645]
[1680576137274,0.025801,27905.0,27904.0,0.39174967]
[1680576137500,0.037801,27905.0,27904.0,0.43731667]
[1680576137726,0.037801,27905.0,27904.0,0.39174967]
[1680576138176,0.025801,27905.0,27904.0,0.39174967]
[1680576138397,0.025801,27905.0,27904.0,0.47696198]
[1680576139074,0.044801,27905.0,27904.0,0.47696198]
[1680576139946,0.044801,27905.0,27904.0,0.47714198]
[1680576140172,0.044801,27905.0,27904.0,0.39192967]
[1680576140431,0.044801,27905.0,27904.0,0.00018]
[1680576140653,0.044981,27905.0,27903.0,0.67642648]
[1680576141786,0.025981,27905.0,27903.0,0.67642648]
[1680576142024,0.037801,27905.0,27903.0,0.67660648]
[1680576142717,0.037981,27905.0,27903.0,0.67642648]
[1680576143591,0.20229782,27905.0,27903.0,0.10601231]
[1680576143826,0.20229782,27905.0,27903.0,0.0208]
[1680576143827,0.01293,27904.0,27903.0,0.0208]
[1680576144057,0.055933,27904.0,27903.0,0.0208]
[1680576144510,0.08923238,27904.0,27903.0,0.0208]
[1680576144961,0.10123238,27904.0,27903.0,0.0208]
[1680576145182,0.067669,27904.0,27903.0,0.0208]
[1680576145409,0.167669,27904.0,27903.0,0.0208]
[1680576146272,0.32084259,27904.0,27903.0,0.0208]
[1680576148274,0.3468255,27904.0,27903.0,0.0208]
[1680576149135,0.3553255,27904.0,27903.0,0.0208]
[1680576149647,0.42477714,27904.0,27903.0,0.0208]
[1680576151676,0.64910355,27904.0,27903.0,0.0208]
[1680576151935,0.8883159,27904.0,27903.0,0.0208]
[1680576152209,0.9003159,27904.0,27903.0,0.0208]
[1680576152494,0.9690159,27904.0,27903.0,0.0208]
[1680576152713,0.9840159,27904.0,27903.0,0.0208]
[1680576153804,0.9570159,27904.0,27903.0,0.0208]
[1680576154026,0.9840159,27904.0,27903.0,0.0208]
[1680576155356,0.9570159,27904.0,27903.0,0.0208]
[1680576155621,0.9840159,27904.0,27903.0,0.0208]
[1680576156086,1.1560339,27904.0,27903.0,0.0208]
[1680576156344,0.9840159,27904.0,27903.0,0.0208]
[1680576157118,0.9840159,27904.0,27903.0,0.02072391]
[1680576157119,0.9838359,27904.0,27903.0,0.02072391]
[1680576157883,0.40988426,27904.0,27903.0,0.02072391]
[1680576158152,0.43688426,27904.0,27903.0,0.02072391]
[1680576158414,0.40988426,27904.0,27903.0,0.02072391]
[1680576158690,0.43688426,27904.0,27903.0,0.02072391]
[1680576161532,0.35978426,27904.0,27903.0,0.02072391]
[1680576161738,0.47610911,27904.0,27903.0,0.02072391]
[1680576164443,0.35978426,27904.0,27903.0,0.01559556]
[1680576165108,0.35996426,27904.0,27903.0,0.01559556]
[1680576165296,0.35978426,27904.0,27903.0,0.01559556]
[1680576167912,0.33278426,27904.0,27903.0,0.01559556]
[1680576168443,0.35978426,27904.0,27903.0,0.01559556]
[1680576168882,0.34729826,27904.0,27903.0,0.01559556]
[1680576169312,0.09598591,27904.0,27903.0,0.01559556]
[1680576170611,0.10837391,27904.0,27903.0,0.01559556]
[1680576170835,0.06158291,27904.0,27903.0,0.40860065]
[1680576171056,0.05298291,27904.0,27903.0,0.53088565]
[1680576171812,0.02598291,27904.0,27903.0,0.53106565]
[1680576172032,0.03898291,27904.0,27903.0,0.53206565]
[1680576172255,0.0086,27905.0,27903.0,0.53106565]
[1680576172468,0.001,27904.0,27903.0,0.53528365]
[1680576172690,0.0086,27905.0,27903.0,0.53028365]
[1680576172908,0.001,27904.0,27903.0,0.49038065]
[1680576173146,0.001,27904.0,27903.0,0.53722265]
[1680576174164,0.001,27904.0,27903.0,0.49688343]
[1680576175027,0.001,27904.0,27903.0,0.22942987]
[1680576175238,0.02786455,27904.0,27903.0,0.22942987]
[1680576175454,0.02786455,27904.0,27903.0,0.35724833]
[1680576175677,0.02786455,27904.0,27903.0,0.34913602]
[1680576175887,0.02786455,27904.0,27903.0,0.87234061]
[1680576176097,0.001,27904.0,27903.0,0.87234061]
[1680576177180,0.001,27904.0,27903.0,0.80424061]
[1680576180144,0.001,27904.0,27903.0,0.97466523]
[1680576180648,0.001,27904.0,27903.0,0.84684677]
[1680576181395,0.001,27904.0,27903.0,1.25488586]
[1680576181645,0.001,27904.0,27903.0,0.80405864]
[1680576181899,0.001,27904.0,27903.0,1.10645304]
[1680576182167,0.0096,27904.0,27903.0,1.10645304]
[1680576182417,0.001,27904.0,27903.0,1.10645304]
[1680576185017,0.0008878,27904.0,27903.0,1.10639304]
[1680576185398,0.0008878,27904.0,27903.0,1.19135571]
[1680576185588,0.0008878,27904.0,27903.0,0.68255112]
[1680576185819,0.0008878,27904.0,27903.0,1.10576102]
[1680576186041,0.0008878,27904.0,27903.0,1.02067835]
[1680576186266,0.0008878,27904.0,27903.0,0.61828395]
[1680576186451,0.0008878,27904.0,27903.0,0.97342003]
[1680576188518,0.0094878,27904.0,27903.0,0.97342003]
[1680576188797,0.0094878,27904.0,27903.0,1.05848917]
[1680576189053,0.0008878,27904.0,27903.0,0.63527178]